[Event "Frauenbundesliga 2021-22"]
[Site "Germany"]
[Date "2022.03.20"]
[Round "6.2"]
[White "Voicu-Jagodzinsky, Carmen"]
[Black "Rogule, Laura"]
[Result "1/2-1/2"]
[ECO "B53"]
[WhiteElo "2290"]
[BlackElo "2317"]
[Annotator "ChessBase"]
[PlyCount "119"]
[EventDate "2021.11.26"]
[EventType "team-tourn"]
[EventCountry "GER"]
[SourceTitle "playchess.com"]
[Source "ChessBase"]
[SourceQuality "1"]
[TimeControl "40/5400+30:1800+30"]

1. e4 {[%emt 0:00:03]} c5 {[%emt 0:00:06]} 2. Nf3 {[%emt 0:00:05]} d6 {[%emt 0:00:26]} 3. d4 {[%emt 0:00:04]} cxd4 {[%emt 0:00:07]} 4. Qxd4 {[%emt 0:00:04]} Nc6 {[%emt 0:03:38]} 5. Qe3 {[%emt 0:00:09]} Nf6 {[%emt 0:05:18]} 6. Be2 {[%emt 0:01:50]} g6 {[%emt 0:05:13]} 7. O-O {[%emt 0:00:21]} Bg7 {[%emt 0:00:16]} 8. h3 {[%emt 0:00:04]} O-O {[%emt 0:02:02]} 9. Rd1 {[%emt 0:00:29]} Qc7 {[%emt 0:02:41]} 10. Nc3 {[%emt 0:00:57]} a6 {[%emt 0:05:23]} 11. Qf4 {[%emt 0:00:51]} b5 {[%emt 0:01:44]} 12. a3 {[%emt 0:06:26]} Ne5 {[%emt 0:20:33]} 13. Qh4 {[%emt 0:13:54]} Nxf3+ {[%emt 0:06:31]} 14. Bxf3 {[%emt 0:00:34]} Rb8 {[%emt 0:00:52]} 15. Bh6 {[%emt 0:20:43]} b4 {[%emt 0:04:25]} 16. Bxg7 {[%emt 0:03:06]} Kxg7 {[%emt 0:00:09]} 17. Nd5 {[%emt 0:09:52]} Nxd5 {[%emt 0:10:01]} 18. exd5 {[%emt 0:00:16]} bxa3 {[%emt 0:02:32]} 19. bxa3 {[%emt 0:04:27]} Bf5 {[%emt 0:07:37]} 20. Re1 {[%emt 0:00:54]} Rb7 {[%emt 0:04:51]} 21. Qd4+ {[%emt 0:03:08]} Kg8 {[%emt 0:00:04]} 22. g4 {[%emt 0:01:09]} Bc8 {[%emt 0:00:18]} 23. Re2 {[%emt 0:00:49]} Qa5 {[%emt 0:03:30]} 24. Kg2 {[%emt 0:01:35]} Re8 {[%emt 0:00:52]} 25. h4 {[%emt 0:01:42]} Rc7 {[%emt 0:06:39]} 26. Rae1 {[%emt 0:03:58]} Qxa3 {[%emt 0:01:36]} 27. Re3 {[%emt 0:10:06]} Qa2 {[%emt 0:04:31]} 28. Rc3 {[%emt 0:01:45]} Qb2 {[%emt 0:01:34]} 29. Ree3 {[%emt 0:01:10]} Bd7 {[%emt 0:00:26]} 30. Red3 {[%emt 0:04:41]} Rb7 {[%emt 0:00:46]} 31. Kg3 {[%emt 0:04:38]} Rc8 {[%emt 0:00:44]} 32. Rxc8+ {[%emt 0:01:55]} Bxc8 {[%emt 0:00:01]} 33. Qc4 {[%emt 0:00:55]} Bd7 {[%emt 0:00:18]} 34. Qxa6 {[%emt 0:00:36]} Qe5+ {[%emt 0:01:06]} 35. Kg2 {[%emt 0:00:35]} Rb4 {[%emt 0:00:28]} 36. Re3 {[%emt 0:02:38]} Qf4 {[%emt 0:00:32]} 37. Qa8+ {[%emt 0:00:32]} Kg7 {[%emt 0:00:01]} 38. Qa1+ {[%emt 0:00:26]} Qf6 {[%emt 0:00:50]} 39. Qxf6+ {[%emt 0:00:35]} exf6 {[%emt 0:00:26]} 40. Kg3 {[%emt 0:00:33]} Rc4 {[%emt 0:00:39]} 41. Ra3 {[%emt 0:02:30]} Kf8 {[%emt 0:14:29]} 42. c3 {[%emt 0:01:43]} h6 {[%emt 0:06:32]} 43. Be2 {[%emt 0:10:06]} Rc5 {[%emt 0:03:13]} 44. c4 {[%emt 0:00:29]} f5 {[%emt 0:00:22]} 45. g5 {[%emt 0:00:26]} h5 {[%emt 0:01:37]} 46. Ra7 {[%emt 0:03:55]} Ke8 {[%emt 0:00:37]} 47. Ra6 {[%emt 0:03:46]} Ke7 {[%emt 0:00:07]} 48. Ra7 {[%emt 0:00:05]} Rc8 {[%emt 0:00:31]} 49. Rb7 {[%emt 0:01:31]} Ra8 {[%emt 0:04:01]} 50. Rb3 {[%emt 0:02:52]} Ra2 {[%emt 0:00:45]} 51. Re3+ {[%emt 0:01:18]} Kd8 {[%emt 0:00:12]} 52. f4 {[%emt 0:00:28]} Rc2 {[%emt 0:00:25]} 53. Kf3 {[%emt 0:00:36]} Rc1 {[%emt 0:00:33]} 54. Ra3 {[%emt 0:01:27]} Rh1 {[%emt 0:00:54]} 55. Kg3 {[%emt 0:00:40]} Rg1+ {[%emt 0:00:29]} 56. Kf2 {[%emt 0:00:13]} Rh1 {[%emt 0:00:22]} 57. Kg3 {[%emt 0:01:25]} Rc1 {[%emt 0:00:10]} 58. Kf2 {[%emt 0:01:20]} Rb1 {[%emt 0:01:12]} 59. Ra8+ {[%emt 0:01:13]} Ke7 {[%emt 0:00:25]} 60. Ra7 {[%emt 0:01:25]} 1/2-1/2

[Event "Frauenbundesliga 2021-22"]
[Site "Germany"]
[Date "2022.03.20"]
[Round "6.3"]
[White "Berzina, Ilze"]
[Black "Ciolacu, Alessia-Mihaela"]
[Result "1-0"]
[ECO "C95"]
[WhiteElo "2192"]
[BlackElo "2239"]
[Annotator "ChessBase"]
[PlyCount "93"]
[EventDate "2021.11.26"]
[EventType "team-tourn"]
[EventCountry "GER"]
[SourceTitle "playchess.com"]
[Source "ChessBase"]
[SourceQuality "1"]
[TimeControl "40/5400+30:1800+30"]

1. e4 {[%emt 0:00:03]} e5 {[%emt 0:00:05]} 2. Nf3 {[%emt 0:00:06]} Nc6 {[%emt 0:00:06]} 3. Bb5 {[%emt 0:00:08]} a6 {[%emt 0:00:06]} 4. Ba4 {[%emt 0:00:41]} Nf6 {[%emt 0:00:10]} 5. O-O {[%emt 0:00:29]} Be7 {[%emt 0:00:09]} 6. Re1 {[%emt 0:00:24]} b5 {[%emt 0:00:17]} 7. Bb3 {[%emt 0:00:07]} d6 {[%emt 0:00:15]} 8. c3 {[%emt 0:00:18]} O-O {[%emt 0:00:10]} 9. h3 {[%emt 0:00:19]} Nb8 {[%emt 0:00:21]} 10. d4 {[%emt 0:01:05]} Nbd7 {[%emt 0:00:11]} 11. Nbd2 {[%emt 0:01:00]} Bb7 {[%emt 0:00:09]} 12. Bc2 {[%emt 0:01:03]} Re8 {[%emt 0:00:12]} 13. Nf1 {[%emt 0:00:33]} Bf8 {[%emt 0:00:10]} 14. Ng3 {[%emt 0:00:30]} g6 {[%emt 0:00:20]} 15. a4 {[%emt 0:03:52]} Nb6 {[%emt 0:00:22]} 16. a5 {[%emt 0:09:58]} Nbd7 {[%emt 0:00:10]} 17. b3 {[%emt 0:00:43]} d5 {[%emt 0:02:11]} 18. Nxe5 {[%emt 0:16:14]} Nxe5 {[%emt 0:11:07]} 19. dxe5 {[%emt 0:00:09]} Rxe5 {[%emt 0:00:31]} 20. Bf4 {[%emt 0:05:27]} Re8 {[%emt 0:09:18]} 21. e5 {[%emt 0:00:25]} Nd7 {[%emt 0:00:18]} 22. Qg4 {[%emt 0:20:35]} Bg7 {[%emt 0:01:01]} 23. Bg5 {[%emt 0:01:15]} f6 {[%emt 0:02:37]} 24. exf6 {[%emt 0:03:10]} Nxf6 {[%emt 0:02:12]} 25. Qf4 {[%emt 0:18:52]} Rf8 {[%emt 0:23:05]} 26. Re6 {[%emt 0:03:51]} Qd7 {[%emt 0:11:23]} 27. Rxf6 {[%emt 0:00:57]} Rxf6 {[%emt 0:00:24]} 28. Bxf6 {[%emt 0:00:14]} Rf8 {[%emt 0:00:09]} 29. Qd2 {[%emt 0:07:46]} Bxf6 {[%emt 0:01:20]} 30. Ne4 {[%emt 0:00:29]} Bg7 {[%emt 0:01:08]} 31. Nc5 {[%emt 0:00:19]} Qc6 {[%emt 0:01:27]} 32. b4 {[%emt 0:00:06]} Kh8 {[%emt 0:16:55]} 33. Re1 {[%emt 0:01:06]} Bc8 {[%emt 0:00:38]} 34. Bb3 {[%emt 0:02:31]} Qd6 35. Re3 {[%emt 0:01:05]} c6 {[%emt 0:00:57]} 36. Qe2 {[%emt 0:01:33]} d4 {[%emt 0:05:01]} 37. cxd4 {[%emt 0:00:02]} Bxd4 {[%emt 0:00:24]} 38. Rf3 {[%emt 0:00:27]} Rd8 {[%emt 0:06:57]} 39. Rf7 {[%emt 0:00:19]} Be5 {[%emt 0:00:57]} 40. Qf3 {[%emt 0:01:33]} Qd2 {[%emt 0:06:16]} 41. g4 {[%emt 0:05:47]} Qd6 {[%emt 0:08:10]} 42. Ne4 {[%emt 0:02:16]} Qd3 {[%emt 0:17:34]} 43. Nf6 {[%emt 0:00:53]} Qb1+ {[%emt 0:00:24]} 44. Kg2 {[%emt 0:00:23]} g5 {[%emt 0:00:05]} 45. Rxh7+ {[%emt 0:00:26]} Qxh7 {[%emt 0:00:07]} 46. Nxh7 {[%emt 0:00:07]} Kxh7 {[%emt 0:00:01]} 47. Qe4+ {[%emt 0:00:24]} 1-0

[Event "Frauenbundesliga 2021-22"]
[Site "Germany"]
[Date "2022.03.20"]
[Round "6.4"]
[White "Ionica, Iulia-Ionela"]
[Black "Otikova, Elina"]
[Result "1-0"]
[ECO "C28"]
[WhiteElo "2194"]
[BlackElo "2105"]
[Annotator "ChessBase"]
[PlyCount "97"]
[EventDate "2021.11.26"]
[EventType "team-tourn"]
[EventCountry "GER"]
[SourceTitle "playchess.com"]
[Source "ChessBase"]
[SourceQuality "1"]
[TimeControl "40/5400+30:1800+30"]

1. e4 {[%emt 0:00:06]} e5 {[%emt 0:00:09]} 2. Bc4 {[%emt 0:00:15]} Nf6 {[%emt 0:04:25]} 3. d3 {[%emt 0:00:25]} Nc6 {[%emt 0:00:43]} 4. Nc3 {[%emt 0:01:14]} Na5 {[%emt 0:01:38]} 5. Bb3 {[%emt 0:00:36]} Nxb3 {[%emt 0:03:25]} 6. axb3 {[%emt 0:00:05]} Be7 {[%emt 0:13:25]} 7. f4 {[%emt 0:08:19]} d6 {[%emt 0:01:34]} 8. Nf3 {[%emt 0:00:40]} exf4 {[%emt 0:10:51]} 9. Bxf4 {[%emt 0:00:13]} d5 {[%emt 0:12:02]} 10. Nb5 {[%emt 0:12:20]} O-O {[%emt 0:08:07]} 11. Nxc7 {[%emt 0:01:48]} Nh5 {[%emt 0:03:35]} 12. Nxd5 {[%emt 0:04:40]} f5 {[%emt 0:01:44]} 13. Nxe7+ {[%emt 0:04:37]} Qxe7 {[%emt 0:00:04]} 14. Bg5 {[%emt 0:01:07]} Qc5 {[%emt 0:14:33]} 15. e5 {[%emt 0:03:03]} h6 {[%emt 0:01:17]} 16. Bd2 {[%emt 0:04:49]} f4 {[%emt 0:08:37]} 17. d4 {[%emt 0:04:14]} Qc6 {[%emt 0:00:56]} 18. O-O {[%emt 0:02:51]} Bg4 {[%emt 0:00:13]} 19. Bb4 {[%emt 0:11:48]} Rfc8 {[%emt 0:04:15]} 20. c3 {[%emt 0:01:22]} Rd8 {[%emt 0:01:26]} 21. Qe2 {[%emt 0:03:34]} g5 {[%emt 0:00:43]} 22. Qc4+ {[%emt 0:02:00]} Qxc4 {[%emt 0:00:05]} 23. bxc4 {[%emt 0:00:03]} Ng7 {[%emt 0:02:40]} 24. Rfe1 {[%emt 0:06:18]} Nf5 {[%emt 0:00:48]} 25. b3 {[%emt 0:03:28]} Ne3 {[%emt 0:00:30]} 26. Ra2 {[%emt 0:01:19]} Re8 {[%emt 0:00:31]} 27. Nd2 {[%emt 0:04:47]} Bf5 {[%emt 0:01:43]} 28. Nf1 {[%emt 0:08:43]} Ng4 {[%emt 0:02:34]} 29. h3 {[%emt 0:01:00]} Nf6 {[%emt 0:00:04]} 30. Rea1 {[%emt 0:01:05]} Ne4 {[%emt 0:00:44]} 31. Rxa7 {[%emt 0:00:22]} Rab8 {[%emt 0:00:03]} 32. R1a2 {[%emt 0:02:42]} h5 {[%emt 0:01:01]} 33. Nd2 {[%emt 0:01:47]} b6 {[%emt 0:02:02]} 34. Nxe4 {[%emt 0:00:49]} Bxe4 {[%emt 0:00:05]} 35. Bd6 {[%emt 0:00:16]} Ra8 {[%emt 0:00:48]} 36. Rxa8 {[%emt 0:01:31]} Rxa8 {[%emt 0:00:24]} 37. Rxa8+ {[%emt 0:00:10]} Bxa8 {[%emt 0:00:02]} 38. Bc7 {[%emt 0:00:09]} Be4 {[%emt 0:00:56]} 39. Bxb6 {[%emt 0:00:17]} Kf7 {[%emt 0:00:45]} 40. Kf2 {[%emt 0:00:36]} Bc2 {[%emt 0:00:31]} 41. b4 {[%emt 0:30:52]} Ke6 {[%emt 0:03:27]} 42. Bd8 {[%emt 0:00:00]} g4 {[%emt 0:01:09]} 43. hxg4 {[%emt 0:00:00]} hxg4 {[%emt 0:00:05]} 44. b5 {[%emt 0:00:00]} Be4 {[%emt 0:02:29]} 45. d5+ {[%emt 0:00:00]} Kd7 {[%emt 0:01:13]} 46. Bg5 {[%emt 0:00:00]} Bd3 {[%emt 0:01:00]} 47. e6+ {[%emt 0:00:00]} Kc7 {[%emt 0:03:11]} 48. Bxf4+ {[%emt 0:00:00]} Kc8 {[%emt 0:01:40]} 49. d6 {[%emt 0:00:00]} 1-0

[Event "Frauenbundesliga 2021-22"]
[Site "Germany"]
[Date "2022.03.20"]
[Round "6.5"]
[White "Naumann, Nadine"]
[Black "Moeller, Lisa-Marie"]
[Result "0-1"]
[ECO "B41"]
[WhiteElo "1960"]
[BlackElo "1903"]
[Annotator "ChessBase"]
[PlyCount "98"]
[EventDate "2021.11.26"]
[EventType "team-tourn"]
[EventCountry "GER"]
[SourceTitle "playchess.com"]
[Source "ChessBase"]
[SourceQuality "1"]
[TimeControl "40/5400+30:1800+30"]

1. e4 {[%emt 0:00:04]} c5 {[%emt 0:00:04]} 2. Nf3 {[%emt 0:00:14]} e6 {[%emt 0:00:06]} 3. d4 {[%emt 0:00:05]} cxd4 {[%emt 0:00:05]} 4. Nxd4 {[%emt 0:00:05]} a6 {[%emt 0:00:06]} 5. c4 {[%emt 0:00:12]} Nf6 {[%emt 0:00:22]} 6. Nc3 {[%emt 0:00:29]} Bb4 {[%emt 0:00:28]} 7. Qd3 {[%emt 0:01:07]} Nc6 {[%emt 0:02:51]} 8. Nxc6 {[%emt 0:02:03]} dxc6 {[%emt 0:01:07]} 9. Qxd8+ {[%emt 0:03:37]} Kxd8 {[%emt 0:00:02]} 10. e5 {[%emt 0:03:01]} Ne4 {[%emt 0:03:07]} 11. Bd2 {[%emt 0:00:55]} Bxc3 {[%emt 0:07:41]} 12. Bxc3 {[%emt 0:01:27]} Nxc3 {[%emt 0:00:08]} 13. bxc3 {[%emt 0:00:07]} c5 {[%emt 0:03:24]} 14. g3 {[%emt 0:10:46]} Kc7 {[%emt 0:02:09]} 15. O-O-O {[%emt 0:01:38]} Bd7 {[%emt 0:01:39]} 16. Bg2 {[%emt 0:05:26]} Ba4 {[%emt 0:03:34]} 17. Rd2 {[%emt 0:01:12]} Rhd8 {[%emt 0:01:50]} 18. Rxd8 {[%emt 0:01:20]} Rxd8 {[%emt 0:00:10]} 19. Be4 {[%emt 0:00:16]} Bc6 {[%emt 0:14:47]} 20. Bxc6 {[%emt 0:01:18]} Kxc6 {[%emt 0:00:02]} 21. Kc2 {[%emt 0:01:26]} Rd7 {[%emt 0:04:13]} 22. Rb1 {[%emt 0:16:30]} b5 {[%emt 0:04:19]} 23. cxb5+ {[%emt 0:12:33]} axb5 {[%emt 0:00:09]} 24. f4 {[%emt 0:01:50]} Ra7 {[%emt 0:07:41]} 25. Kb3 {[%emt 0:03:13]} c4+ {[%emt 0:04:56]} 26. Kb2 {[%emt 0:00:50]} Rd7 {[%emt 0:06:52]} 27. Kc2 {[%emt 0:09:51]} Kc5 {[%emt 0:01:56]} 28. Re1 {[%emt 0:03:51]} Rd3 {[%emt 0:03:43]} 29. a3 {[%emt 0:03:46]} h5 {[%emt 0:05:39]} 30. Re2 {[%emt 0:06:16]} h4 {[%emt 0:05:13]} 31. Rg2 {[%emt 0:02:35]} hxg3 {[%emt 0:03:26]} 32. hxg3 {[%emt 0:00:11]} Kd5 {[%emt 0:00:44]} 33. g4 {[%emt 0:01:25]} Ke4 {[%emt 0:02:58]} 34. f5 {[%emt 0:01:20]} Kxe5 {[%emt 0:00:29]} 35. fxe6 {[%emt 0:00:54]} fxe6 {[%emt 0:02:39]} 36. Re2+ {[%emt 0:00:47]} Kd5 {[%emt 0:00:47]} 37. Rh2 {[%emt 0:02:22]} Rg3 {[%emt 0:03:53]} 38. Rh5+ {[%emt 0:00:10]} e5 {[%emt 0:00:19]} 39. Rg5 {[%emt 0:00:10]} Rg2+ {[%emt 0:00:18]} 40. Kb1 {[%emt 0:00:06]} Ke4 {[%emt 0:00:45]} 41. Rxg7 {[%emt 0:30:30]} Kd3 {[%emt 0:30:40]} 42. Rb7 {[%emt 0:00:00]} e4 {[%emt 0:00:00]} 43. Rxb5 {[%emt 0:00:00]} e3 {[%emt 0:00:00]} 44. Rd5+ {[%emt 0:00:00]} Kxc3 {[%emt 0:00:00]} 45. Rd1 {[%emt 0:00:00]} e2 {[%emt 0:00:00]} 46. Rc1+ {[%emt 0:00:00]} Kd2 {[%emt 0:00:00]} 47. Rc2+ {[%emt 0:00:00]} Kd3 {[%emt 0:00:00]} 48. Kb2 {[%emt 0:00:00]} e1=Q {[%emt 0:00:00]} 49. Rxg2 {[%emt 0:00:00]} c3+ {[%emt 0:00:00]} 0-1

[Event "Frauenbundesliga 2021-22"]
[Site "Germany"]
[Date "2022.03.20"]
[Round "6.6"]
[White "Dartmann Aubanell, Catriona"]
[Black "Schuster, Rebekka"]
[Result "1-0"]
[ECO "C01"]
[WhiteElo "1834"]
[BlackElo "1840"]
[Annotator "NA RC"]
[PlyCount "81"]
[EventDate "2021.11.26"]
[EventType "team-tourn"]
[EventCountry "GER"]
[SourceTitle "playchess.com"]
[Source "ChessBase"]
[SourceQuality "1"]
[TimeControl "40/5400+30:1800+30"]

1. e4 {[%emt 0:00:06]} e6 {[%emt 0:00:04]} 2. d4 {[%emt 0:00:16]} d5 {[%emt 0:00:05]} 3. Bd3 {[%emt 0:00:13]} Nf6 {[%emt 0:00:27]} 4. e5 {[%emt 0:00:19]} Nfd7 {[%emt 0:00:14]} 5. f4 {[%emt 0:00:25]} c5 {[%emt 0:00:29]} 6. c3 {[%emt 0:00:29]} Nc6 {[%emt 0:00:21]} 7. Nf3 {[%emt 0:00:30]} Be7 {[%emt 0:01:28]} 8. a3 {[%emt 0:01:52]} f6 {[%emt 0:07:36]} 9. O-O {[%emt 0:03:43]} (9. b4 $5) 9... O-O {[%emt 0:02:28]} 10. Qc2 {[%emt 0:10:56]} f5 $11 {[%emt 0:07:34]} 11. Qf2 {[%emt 0:08:37]} c4 {[%emt 0:06:54]} 12. Bc2 {[%emt 0:00:47]} b5 {[%emt 0:12:33]} 13. Kh1 {[%emt 0:07:40]} Kh8 {[%emt 0:17:28]} 14. Ng5 {[%emt 0:09:02]} Nb6 {[%emt 0:15:05]} 15. Qh4 {[%emt 0:04:17]} h6 {[%emt 0:01:02]} 16. Qh3 {[%emt 0:13:46]} Kg8 {[%emt 0:02:59]} 17. Nf3 {[%emt 0:00:32]} Kh7 {[%emt 0:07:46]} 18. g4 {[%emt 0:07:35]} g6 {[%emt 0:00:06]} 19. Rg1 {[%emt 0:09:50]} Rg8 {[%emt 0:00:15]} 20. Nbd2 {[%emt 0:04:04]} Bd7 {[%emt 0:01:19]} 21. Nf1 {[%emt 0:00:45]} Na4 {[%emt 0:14:47]} 22. Ng3 {[%emt 0:02:23]} Be8 {[%emt 0:00:00]} 23. Ng5+ {[%emt 0:01:32]} Bxg5 {[%emt 0:00:00]} 24. fxg5 {[%emt 0:00:01]} h5 {[%emt 0:00:00]} 25. gxh5 {[%emt 0:00:35]} gxh5 {[%emt 0:00:00]} 26. Nxh5 {[%emt 0:00:10]} Bxh5 {[%emt 0:00:00]} 27. Qxh5+ {[%emt 0:00:02]} Kg7 {[%emt 0:00:01]} 28. Qh6+ {[%emt 0:01:36]} Kf7 {[%emt 0:00:01]} 29. g6+ {[%emt 0:00:53]} Ke8 {[%emt 0:00:35]} 30. g7 {[%emt 0:03:17]} Qe7 {[%emt 0:03:53]} 31. Bxf5 {[%emt 0:00:34]} Kd7 {[%emt 0:00:00]} 32. Bh7 {[%emt 0:00:58]} Qf7 {[%emt 0:00:00]} 33. Bf4 {[%emt 0:01:09]} Rgc8 {[%emt 0:00:04]} 34. g8=Q {[%emt 0:00:50]} Rxg8 {[%emt 0:00:02]} 35. Rxg8 {[%emt 0:00:42]} Rxg8 {[%emt 0:00:01]} 36. Bxg8 {[%emt 0:00:12]} Qxg8 {[%emt 0:00:01]} 37. Rg1 {[%emt 0:00:19]} Qe8 {[%emt 0:00:06]} 38. Rg7+ {[%emt 0:00:55]} Kc8 {[%emt 0:02:57]} 39. Qh7 {[%emt 0:00:25]} Nd8 {[%emt 0:00:08]} 40. Rxa7 {[%emt 0:00:33]} Qc6 {[%emt 0:00:46]} 41. Bg5 {[%emt 0:30:56]} 1-0

[Event "Frauenbundesliga 2021-22"]
[Site "Germany"]
[Date "2022.03.20"]
[Round "6.9"]
[White "Hincu, Olga"]
[Black "Duessler, Stefanie"]
[Result "1-0"]
[ECO "E14"]
[WhiteElo "2070"]
[BlackElo "2119"]
[Annotator "ChessBase"]
[PlyCount "143"]
[EventDate "2021.11.26"]
[EventType "team-tourn"]
[EventCountry "GER"]
[SourceTitle "playchess.com"]
[Source "ChessBase"]
[SourceQuality "1"]
[TimeControl "40/5400+30:1800+30"]

1. d4 {[%emt 0:00:03]} Nf6 {[%emt 0:00:04]} 2. Nf3 {[%emt 0:00:04]} b6 {[%emt 0:00:05]} 3. c4 {[%emt 0:00:22]} Bb7 {[%emt 0:00:26]} 4. Nc3 {[%emt 0:00:42]} d5 {[%emt 0:01:24]} 5. e3 {[%emt 0:06:00]} e6 {[%emt 0:03:13]} 6. Bd3 {[%emt 0:01:54]} Be7 {[%emt 0:04:01]} 7. O-O {[%emt 0:00:25]} O-O {[%emt 0:00:21]} 8. Ne5 {[%emt 0:04:55]} Nbd7 {[%emt 0:02:14]} 9. Qc2 {[%emt 0:02:28]} c5 {[%emt 0:02:36]} 10. b3 {[%emt 0:00:28]} Rc8 {[%emt 0:03:42]} 11. Bb2 {[%emt 0:01:39]} h6 {[%emt 0:00:07]} 12. h3 {[%emt 0:06:27]} dxc4 {[%emt 0:02:36]} 13. bxc4 {[%emt 0:02:50]} cxd4 {[%emt 0:01:44]} 14. exd4 {[%emt 0:00:48]} Nxe5 {[%emt 0:00:04]} 15. dxe5 {[%emt 0:00:04]} Nd7 {[%emt 0:00:08]} 16. Rad1 {[%emt 0:15:52]} a6 {[%emt 0:01:24]} 17. Ne4 {[%emt 0:16:09]} Qc7 {[%emt 0:02:31]} 18. Nd6 {[%emt 0:03:27]} Bxd6 {[%emt 0:01:09]} 19. exd6 {[%emt 0:00:02]} Qc6 {[%emt 0:00:09]} 20. f3 {[%emt 0:05:54]} Nc5 {[%emt 0:08:05]} 21. Qc3 {[%emt 0:01:02]} f6 {[%emt 0:00:31]} 22. Bc2 {[%emt 0:02:46]} Rcd8 {[%emt 0:01:54]} 23. Qd4 {[%emt 0:02:40]} Rf7 {[%emt 0:02:13]} 24. Qg4 {[%emt 0:04:16]} Bc8 {[%emt 0:20:43]} 25. Qg6 {[%emt 0:01:33]} f5 {[%emt 0:00:37]} 26. Be5 {[%emt 0:04:10]} Qe8 {[%emt 0:02:30]} 27. f4 {[%emt 0:01:43]} Rb7 {[%emt 0:05:49]} 28. Qg3 {[%emt 0:01:42]} Qf7 {[%emt 0:00:52]} 29. Rf3 {[%emt 0:01:25]} Kh7 {[%emt 0:02:31]} 30. Qh4 {[%emt 0:01:16]} Rg8 {[%emt 0:00:11]} 31. g4 {[%emt 0:01:51]} Bd7 {[%emt 0:04:23]} 32. Rg3 {[%emt 0:02:19]} g6 {[%emt 0:01:00]} 33. Kh2 {[%emt 0:00:59]} Bc6 {[%emt 0:01:51]} 34. Rdg1 {[%emt 0:00:52]} Be4 {[%emt 0:08:04]} 35. g5 {[%emt 0:05:09]} Qf8 {[%emt 0:00:39]} 36. Bd1 {[%emt 0:02:20]} Nd3 {[%emt 0:02:48]} 37. gxh6 {[%emt 0:01:22]} Nxe5 {[%emt 0:03:03]} 38. fxe5 {[%emt 0:00:11]} Qxh6 {[%emt 0:00:04]} 39. Qxh6+ {[%emt 0:00:44]} Kxh6 {[%emt 0:00:01]} 40. h4 {[%emt 0:00:22]} Bc6 {[%emt 0:04:31]} 41. Rg5 {[%emt 0:30:25]} Be8 {[%emt 0:32:09]} 42. Bf3 {[%emt 0:01:03]} Rh7 {[%emt 0:00:39]} 43. Rh5+ {[%emt 0:00:00]} Kg7 {[%emt 0:00:00]} 44. Rxh7+ {[%emt 0:00:00]} Kxh7 {[%emt 0:00:00]} 45. Rb1 {[%emt 0:00:00]} g5 {[%emt 0:00:00]} 46. hxg5 {[%emt 0:00:00]} Rxg5 {[%emt 0:00:00]} 47. Rxb6 {[%emt 0:00:00]} f4 {[%emt 0:00:00]} 48. Rxa6 {[%emt 0:00:00]} Rxe5 {[%emt 0:00:00]} 49. Ra7+ {[%emt 0:00:00]} Kg6 {[%emt 0:00:00]} 50. d7 {[%emt 0:00:00]} Bxd7 {[%emt 0:00:00]} 51. Rxd7 {[%emt 0:00:00]} Re3 {[%emt 0:00:00]} 52. Kg2 {[%emt 0:00:00]} e5 {[%emt 0:00:00]} 53. Re7 {[%emt 0:00:00]} Kf6 {[%emt 0:00:00]} 54. Re8 {[%emt 0:00:00]} Ra3 {[%emt 0:00:00]} 55. c5 {[%emt 0:00:00]} Rxa2+ {[%emt 0:00:00]} 56. Kh3 {[%emt 0:00:00]} Kf5 {[%emt 0:00:00]} 57. c6 {[%emt 0:00:00]} Rc2 {[%emt 0:00:00]} 58. Rf8+ {[%emt 0:00:00]} Ke6 {[%emt 0:00:00]} 59. Kg4 {[%emt 0:00:00]} Rc3 {[%emt 0:00:00]} 60. Rd8 {[%emt 0:00:10]} Kf6 {[%emt 0:00:00]} 61. Rd6+ {[%emt 0:00:34]} Ke7 {[%emt 0:00:00]} 62. Rd7+ {[%emt 0:00:10]} Kf6 {[%emt 0:00:00]} 63. Rd6+ {[%emt 0:02:59]} Ke7 {[%emt 0:00:00]} 64. Rh6 {[%emt 0:00:41]} Re3 {[%emt 0:00:00]} 65. Rh7+ {[%emt 0:00:41]} Kd6 {[%emt 0:00:00]} 66. Rd7+ {[%emt 0:00:19]} Ke6 {[%emt 0:00:00]} 67. Bd5+ {[%emt 0:00:06]} Kf6 {[%emt 0:00:00]} 68. Rd6+ {[%emt 0:00:16]} Ke7 {[%emt 0:00:00]} 69. Re6+ {[%emt 0:03:42]} Kd8 {[%emt 0:00:00]} 70. Rh6 {[%emt 0:00:53]} Ke7 {[%emt 0:00:00]} 71. c7 {[%emt 0:01:23]} Rc3 {[%emt 0:00:00]} 72. Rc6 {[%emt 0:00:36]} 1-0

[Event "Frauenbundesliga 2021-22"]
[Site "Germany"]
[Date "2022.03.20"]
[Round "6.10"]
[White "Manusina, Nicole"]
[Black "Schulz, Petra"]
[Result "1/2-1/2"]
[ECO "E81"]
[WhiteElo "2017"]
[BlackElo "1991"]
[Annotator "ChessBase"]
[PlyCount "58"]
[EventDate "2021.11.26"]
[EventType "team-tourn"]
[EventCountry "GER"]
[SourceTitle "playchess.com"]
[Source "ChessBase"]
[SourceQuality "1"]
[TimeControl "40/5400+30:1800+30"]

1. d4 {[%emt 0:00:04]} Nf6 {[%emt 0:00:05]} 2. c4 {[%emt 0:00:09]} g6 {[%emt 0:00:05]} 3. Nc3 {[%emt 0:00:07]} Bg7 {[%emt 0:00:16]} 4. e4 {[%emt 0:00:10]} d6 {[%emt 0:00:05]} 5. f3 {[%emt 0:00:17]} O-O {[%emt 0:00:06]} 6. Be3 {[%emt 0:00:04]} c5 {[%emt 0:00:24]} 7. Nge2 {[%emt 0:00:40]} Qa5 {[%emt 0:00:19]} 8. Qd2 {[%emt 0:00:27]} Nc6 {[%emt 0:06:15]} 9. d5 {[%emt 0:20:38]} Ne5 {[%emt 0:02:43]} 10. Nc1 {[%emt 0:00:06]} a6 {[%emt 0:00:41]} 11. Rb1 {[%emt 0:05:34]} Rb8 {[%emt 0:32:15]} 12. a3 {[%emt 0:05:44]} Qc7 {[%emt 0:01:13]} 13. Be2 {[%emt 0:05:45]} Bd7 {[%emt 0:09:13]} 14. O-O {[%emt 0:14:08]} b5 {[%emt 0:01:11]} 15. cxb5 {[%emt 0:05:20]} Bxb5 {[%emt 0:00:58]} 16. b3 {[%emt 0:15:35]} Bxe2 {[%emt 0:13:19]} 17. N1xe2 {[%emt 0:03:11]} a5 {[%emt 0:06:12]} 18. Rfc1 {[%emt 0:04:20]} Rb7 {[%emt 0:03:21]} 19. a4 {[%emt 0:03:04]} Rfb8 {[%emt 0:03:46]} 20. Nb5 {[%emt 0:01:14]} Qd8 {[%emt 0:00:11]} 21. h3 {[%emt 0:07:14]} Ne8 {[%emt 0:04:40]} 22. Bf2 {[%emt 0:03:07]} Nc7 {[%emt 0:01:08]} 23. Nec3 {[%emt 0:00:04]} Na6 {[%emt 0:02:52]} 24. f4 {[%emt 0:01:32]} Nd7 {[%emt 0:00:09]} 25. Qe2 {[%emt 0:00:56]} Nb4 {[%emt 0:00:31]} 26. Nd1 {[%emt 0:01:34]} Nf6 {[%emt 0:03:24]} 27. Ndc3 {[%emt 0:00:42]} Nd7 {[%emt 0:03:40]} 28. Nd1 {[%emt 0:00:30]} Nf6 {[%emt 0:00:12]} 29. Ndc3 {[%emt 0:00:05]} Nd7 {[%emt 0:00:07]} 1/2-1/2